lending/lending_fUSD_20260209
["ID","MTS","AMOUNT","RATE_DAILY","PERIOD"]
[404900058,1770664239442,-777.92382463,0.00017808,2]
[404900059,1770664239451,-777.92382463,0.00017808,2]
[404900060,1770664239461,-777.92382463,0.00017808,2]
[404900061,1770664239471,-777.92382463,0.00017808,2]
[404900062,1770664239481,-777.92382463,0.00017808,2]
[404900063,1770664239490,-777.92382463,0.00017808,2]
[404900064,1770664239499,-777.92382463,0.00017808,2]
[404900065,1770664239509,-777.92382463,0.00017808,2]
[404900066,1770664239518,-777.92382463,0.00017808,2]
[404900067,1770664239527,-777.92382463,0.00017808,2]
[404900068,1770664239536,-777.92382463,0.00017808,2]
[404900069,1770664239546,-777.92382463,0.00017808,2]
[404900070,1770664239555,-777.92382463,0.00017808,2]
[404900071,1770664239565,-777.92382463,0.00017808,2]
[404900072,1770664239574,-777.92382463,0.00017808,2]
[404900073,1770664239583,-777.92382463,0.00017808,2]
[404900074,1770664239593,-777.92382463,0.00017808,2]
[404900075,1770664239603,-777.92382463,0.00017808,2]
[404900076,1770664239613,-100476.39903326,0.0001783,2]
[404900077,1770664239622,-160.0,0.00017847,2]
[404900078,1770664239631,-377.98822722,0.00017854,2]
[404900079,1770664239641,-500.0,0.00017854,2]
[404900080,1770664239651,-500.0,0.00017854,2]
[404900082,1770664239660,-500.0,0.00017863,2]
[404900083,1770664239670,-150.29839688,0.000179,2]
[404900084,1770664239679,-10000.0,0.000179,2]
[404900085,1770664239688,-348.05035723,0.000179,2]
[404900086,1770664239698,-5223.98123464,0.000179,2]
[404900087,1770664239707,-19894.12772144,0.000179,3]
[404900088,1770664239716,-1998.51537072,0.000179,2]
[404900089,1770664239726,-431.07367187,0.000179,2]
[404900090,1770664239735,-5287.46130832,0.000179,2]
[404900091,1770664239744,-2534.31583183,0.000179,2]
[404900092,1770664239754,-642.65596542,0.000179,2]
[404900093,1770664239763,-190.69405047,0.000179,3]
[404900094,1770664239772,-500.0,0.000179,2]
[404900095,1770664239781,-500.0,0.000179,2]
[404900096,1770664239791,-500.0,0.000179,2]
[404900098,1770664239800,-184.52318996,0.000179,2]
[404900100,1770664239809,-400.0,0.00017909,2]
[404900102,1770664239819,-250.0,0.00017909,2]
[404900104,1770664239828,-500.0,0.00017918,2]
[404900105,1770664239837,-650.0,0.00017947,2]
[404900106,1770664239846,-400.0,0.00017972,2]
[404900107,1770664239856,-5528.0,0.00017973,2]
[404900108,1770664239868,-200.0,0.00017973,2]
[404900109,1770664239877,-151.0,0.00017997,2]
[404900110,1770664239887,-1087.9262344,0.00017999,2]
[404900111,1770664239896,-300.0,0.00017999,2]
[404900112,1770664239907,-300.0,0.00017999,2]
[404900113,1770664239916,-140104.2880283,0.00018,2]
[404900114,1770664239929,-35262.0,0.00018,2]
[404900115,1770664239939,-825.03171864,0.00018,2]
[404900116,1770664239950,-949.38415626,0.00018,2]
[404900117,1770664239966,-100252.28279371,0.00018,2]
[404900118,1770664239977,-7505.7239404,0.00018,2]
[404900119,1770664239987,-109592.64721999,0.00018,2]
[404900120,1770664239996,-10160310.2144803,0.00018,2]
[404900121,1770664240008,-13380.60546218,0.00018,2]
[404900122,1770664240085,-325.17231603,0.00017635,2]
[404900123,1770664240115,-174.82768397,0.00017635,2]
[404900124,1770664240124,-500.0,0.00017908,2]
[404900125,1770664240135,-304171.94466652,0.00018,2]
[404900126,1770664240150,-401634.02734591,0.00018,2]
[404900127,1770664240159,-127969.6689944,0.00018,2]
[404900128,1770664240168,-10802.595917,0.00018,2]
[404900129,1770664240179,-151.0,0.00018,2]
[404900130,1770664240189,-420.0,0.00018009,2]
[404900131,1770664240198,-386.0,0.00018016,2]
[404900132,1770664240208,-650.0,0.00018038,2]
[404900133,1770664240218,-290.0,0.00018055,2]
[404900134,1770664240229,-419.0,0.00018055,2]
[404900135,1770664240238,-1680.0,0.00018099,2]
[404900136,1770664240248,-1781.49378135,0.000181,2]
[404900137,1770664240257,-200.0,0.00018119,2]
[404900138,1770664240266,-500.0,0.00018119,2]
[404900139,1770664240275,-200.0,0.00018119,2]
[404900140,1770664240285,-1662.0,0.00018128,2]
[404900141,1770664240294,-300.0,0.00018128,2]
[404900142,1770664240311,-200.59756188,0.00018128,2]
[404900143,1770664240320,-250.0,0.00018129,2]
[404900144,1770664240331,-935.0,0.00018129,2]
[404900145,1770664240340,-174.0,0.00018137,2]
[404900146,1770664240349,-386.0,0.00018148,2]
[404900147,1770664240362,-500.0,0.00018182,2]
[404900148,1770664240371,-250.0,0.00018186,2]
[404900149,1770664240381,-180.0,0.00018219,2]
[404900150,1770664240390,-167.0,0.00018219,2]
[404900151,1770664240399,-523.0,0.00018304,2]
[404900152,1770664240408,-523.0,0.00018377,2]
[404900153,1770664240417,-2257.64,0.00018392,2]
[404900154,1770664240426,-1662.0,0.00018449,2]
[404900155,1770664240435,-153.87,0.00018488,2]
[404900156,1770664240444,-1662.0,0.00018488,2]
[404900157,1770664240454,-300.0,0.00018492,2]
[404900158,1770664240463,-600.0,0.00018492,2]
[404900159,1770664240473,-500.0,0.00018492,2]
[404900160,1770664240483,-781.27561269,0.00018492,2]
[404900161,1770664240492,-386.0,0.00018494,2]
[404900162,1770664240501,-523.0,0.000185,2]
[404900163,1770664240510,-1662.0,0.00018518,2]
[404900164,1770664240520,-1662.0,0.00018525,2]
[404900165,1770664240529,-1662.0,0.00018562,2]
[404900166,1770664240538,-900.0,0.00018576,2]
[404900167,1770664240548,-172.31661001,0.00018587,2]
[404900168,1770664240558,-386.0,0.00018592,2]
[404900169,1770664240567,-166.66,0.00018592,2]
[404900170,1770664240576,-482.98714492,0.00018608,2]
[404900171,1770664240585,-482.98714489,0.00018608,2]
[404900172,1770664240595,-386.0,0.00018647,2]
[404900173,1770664240604,-200.0,0.00018667,2]
[404900174,1770664240613,-500.0,0.00018667,2]
[404900175,1770664240623,-200.0,0.00018667,2]
[404900176,1770664240634,-1662.0,0.00018687,2]
[404900177,1770664240643,-523.0,0.0001869,2]
[404900178,1770664240652,-1662.0,0.00018702,2]
[404900179,1770664240662,-1662.0,0.00018722,2]
[404900180,1770664240671,-250.0,0.00018726,2]
[404900181,1770664240681,-300.0,0.00018735,2]
[404900182,1770664240691,-230.89379757,0.00018794,2]
[404900183,1770664240700,-1662.0,0.0001886,2]
[404900184,1770664240710,-1662.0,0.00018872,2]
[404900185,1770664240719,-1662.0,0.00018905,2]
[404900186,1770664240728,-1662.0,0.00018934,2]
[404900187,1770664240737,-166.66,0.00018983,2]
[404900188,1770664240746,-166.83,0.00018987,2]
[404900189,1770664240755,-1145.84487387,0.00019,2]
[404900190,1770664240766,-1662.0,0.00019058,2]
[404900191,1770664240775,-482.98714492,0.00019074,2]
[404900192,1770664240784,-369.0,0.00019178,2]
[404900193,1770664240794,-18868.43,0.00019178,2]
[404900194,1770664240803,-200.0,0.00019215,2]
[404900195,1770664240812,-500.0,0.00019215,2]
[404900196,1770664240822,-200.0,0.00019215,2]
[404900197,1770664240831,-2257.64,0.00019228,2]
[404900198,1770664240840,-166.66,0.00019248,2]
[404900199,1770664240850,-1589.0,0.00019303,2]
[404900200,1770664240862,-300.0,0.00019338,2]
[404900201,1770664240871,-300.0,0.00019338,2]
[404900202,1770664240880,-1623.01,0.00019339,2]
[404900203,1770664240889,-150.99,0.00019339,2]
[404900204,1770664240899,-9999.99,0.00019339,2]
[404900205,1770664240908,-1610.81,0.00019339,2]
[404900206,1770664240917,-999.99,0.00019339,2]
[404900207,1770664240927,-16472.4,0.00019339,2]
[404900208,1770664240936,-9999.99,0.00019339,2]
[404900209,1770664240945,-2981.69,0.00019339,2]
[404900210,1770664240954,-9999.99,0.00019339,2]
[404900211,1770664240963,-5909.69,0.00019339,2]
[404900212,1770664240972,-150.99,0.00019339,2]
[404900213,1770664240981,-14615.05,0.00019339,2]
[404900214,1770664240990,-3187.53,0.00019339,2]
[404900215,1770664240999,-5278.04,0.00019339,2]
[404900216,1770664241009,-59327.49,0.00019339,2]
[404900217,1770664241018,-499.99,0.00019339,2]
[404900218,1770664241027,-26706.82,0.00019339,2]
[404900219,1770664241037,-23588.34,0.00019339,2]
[404900220,1770664241046,-299.99,0.00019339,7]
[404900221,1770664241055,-4608.89,0.00019339,2]
[404900222,1770664241065,-9999.99,0.00019339,2]
[404900223,1770664241074,-9999.99,0.00019339,2]
[404900224,1770664241086,-9999.99,0.00019339,2]
[404900225,1770664241098,-166.66,0.00019375,2]
[404900226,1770664241110,-153.87,0.00019461,2]
[404900227,1770664241122,-482.98714492,0.00019539,2]
[404900228,1770664241133,-1000.0,0.00019632,2]
[404900229,1770664241144,-1254.28,0.00019655,2]
[404900230,1770664241153,-587.0,0.0001968,2]
[404900231,1770664241163,-150.0,0.00019726,2]
[404900232,1770664241173,-200.0,0.00019763,2]
[404900233,1770664241184,-500.0,0.00019763,2]
[404900234,1770664241195,-200.0,0.00019763,2]
[404900235,1770664241206,-166.66,0.00019766,2]
[404900236,1770664241217,-150.0,0.00019781,2]
[404900237,1770664241228,-201.89069271,0.00019836,2]
[404900238,1770664241239,-2351.0,0.00019877,2]
[404900239,1770664241251,-166.66,0.00019883,2]
[404900240,1770664241262,-4930.70056391,0.000199,3]
[404900241,1770664241273,-10802.595917,0.00019915,2]
[404900242,1770664241284,-900.0,0.00019946,2]
[404900243,1770664241295,-300.0,0.00019989,2]
[404900244,1770664241306,-300.0,0.00019989,2]
[404900245,1770664241318,-56954.67252511,0.0001999,2]
[404900246,1770664241330,-151.0,0.00019997,2]
[404900247,1770664241341,-300.0,0.00019999,2]
[404900248,1770664241352,-87256.45661182,0.0002,4]
[404900249,1770664241364,-482.98714492,0.00020004,2]
[404900250,1770664241378,-2257.64,0.00020064,2]
[404900251,1770664241395,-166.66,0.00020157,2]
[404900252,1770664241410,-334.5472959,0.00020216,2]
[404900253,1770664241422,-174.61919141,0.00020216,2]
[404900254,1770664241434,-383.59785608,0.00020216,2]
[404900255,1770664241444,-200.0,0.00020311,2]
[404900256,1770664241456,-200.0,0.00020311,2]
[404900257,1770664241468,-500.10948216,0.00020328,3]
[404900258,1770664241479,-153.87,0.00020434,2]
[404900259,1770664241491,-482.98714492,0.00020469,2]
[404900260,1770664241503,-166.66,0.00020519,2]
[404900261,1770664241515,-166.66,0.00020549,2]
[404900262,1770664241526,-150.0,0.0002055,14]
[404900263,1770664241538,-678.0,0.00020563,2]
[404900264,1770664241549,-421.08,0.00020568,2]
[404900265,1770664241561,-500.0,0.00020658,2]
[404900266,1770664241573,-174.61919141,0.00020764,2]
[404900267,1770664241584,-173.75,0.00020812,2]
[404900268,1770664241595,-200.0,0.00020859,2]
[404900269,1770664241605,-68717.02245631,0.00021,2]
[404900270,1770664241617,-166.66,0.00021154,2]
[404900271,1770664241629,-28553.8927368,0.00021254,2]
[404900272,1770664241644,-153.87,0.00021407,2]
[404900273,1770664241656,-237.66106357,0.00021407,2]
[404900274,1770664241667,-5287.4613083,0.00021483,2]
[404900275,1770664241679,-225.0,0.00021507,2]
[404900276,1770664241690,-1467.9258348,0.00021525,2]
[404900277,1770664241702,-1000.0,0.00021595,2]
[404900278,1770664241714,-572.35,0.000216,2]
[404900279,1770664241724,-1254.28,0.00021621,2]
[404900280,1770664241735,-166.66,0.0002179,2]
[404900281,1770664241746,-3292.0,0.0002183,2]
[404900282,1770664241758,-10802.595917,0.00021831,2]
[404900283,1770664241770,-500.0,0.0002189,2]
[404900284,1770664241782,-500.773019,0.00021915,2]
[404900285,1770664241795,-2017.88585206,0.00021917,2]
[404900286,1770664241806,-5000.0,0.00021918,2]
[404900287,1770664241818,-325.32148607,0.00021918,2]
[404900288,1770664241830,-150.0,0.00021918,2]
[404900289,1770664241841,-150.0,0.00021973,2]
[404900290,1770664241851,-6371.2346592,0.0002198,2]
[404900291,1770664241865,-20284.51,0.00022,2]
[404900292,1770664241876,-10041.74,0.00022022,2]
[404900293,1770664241888,-200.0,0.00022028,2]
[404900294,1770664241898,-7590.87,0.00022143,2]
[404900295,1770664241908,-153.87,0.0002238,2]
[404900296,1770664241919,-166.66,0.00022425,2]
[404900297,1770664241931,-681.38,0.000226,7]
[404900298,1770664241941,-226.23,0.00022608,2]
[404900299,1770664241953,-6875.0,0.000227,2]
[404900300,1770664241964,-2899.74649483,0.00022942,2]
[404900301,1770664241976,-160.0,0.00023,2]
[404900302,1770664241987,-421.08,0.00023,2]
[404900303,1770664241998,-153.87,0.00023353,2]
[404900304,1770664242008,-5529.0,0.000235,3]
[404900305,1770664242018,-1000.0,0.00023558,2]
[404900306,1770664242028,-1254.28,0.00023586,2]
[404900307,1770664242037,-200.0,0.00023675,2]
[404900308,1770664242048,-173.75,0.00023706,2]
[404900309,1770664242058,-10802.595917,0.00023746,2]
[404900310,1770664242068,-4609.0,0.00023976,2]
[404900311,1770664242079,-178911.09366731,0.000241,2]
[404900312,1770664242090,-5529.0,0.000243,5]
[404900313,1770664242102,-500.0,0.00024359,2]
[404900314,1770664242113,-4331.56715486,0.0002436,2]
[404900315,1770664242124,-500.0,0.00024438,2]
[404900316,1770664242135,-3473.18359514,0.000245,2]
[404900325,1770664243587,-500.0,0.00018456,2]
[404900326,1770664243598,-634.83809216,0.000245,2]
[404900327,1770664245729,-12247.90040781,0.000245,2]
[404900333,1770664248128,-600.8458789,0.000245,2]
[404900334,1770664249014,-602.58593517,0.000245,2]
[404900339,1770664350534,1081.69183,0.0003408,50]
[404900340,1770664350594,1081.69183,0.0003408,50]
[404900341,1770664350807,1081.69183,0.0003408,50]
[404900342,1770664350863,1081.69184,0.0003431,53]
[404900343,1770664350911,1081.69183,0.0003408,50]
[404900344,1770664350959,1081.69184,0.0003408,50]
[404900345,1770664437060,1689.54388788,0.00016781,2]
[404900346,1770664440157,428.43731028,0.00016781,2]
[404900347,1770664447616,4068.162037,7.945e-05,2]
[404900348,1770664473483,150.0,0.00016804,2]
[404900349,1770664484371,-300.0,0.0001683,2]
[404900350,1770664484396,-500.0,0.00016831,2]
[404900351,1770664484421,-499200.0,0.00016831,2]
[404900353,1770664506428,-1200.0,0.0001683,2]
[404900354,1770664506451,-550.0,0.0001683,2]
[404900355,1770664506477,-498250.0,0.00016831,2]
[404900356,1770664531073,3199.90807436,0.00016731,2]
[404900357,1770664542251,198.6842319,0.00016731,2]
[404900358,1770664544091,-300.0,0.0001683,2]
[404900359,1770664544115,-499700.0,0.00016831,2]
[404900360,1770664566657,-2308.89881685,0.00016831,2]
[404900361,1770664566753,-10000.01,0.00016831,2]
[404900362,1770664566866,-10000.01,0.00016831,2]
[404900363,1770664566986,-10000.01,0.00016831,2]
[404900364,1770664567088,-10000.01,0.00016831,2]
[404900365,1770664567209,-10000.01,0.00016831,2]
[404900366,1770664567349,-10000.01,0.00016831,2]
[404900367,1770664569283,-10000.01,0.00016831,2]
[404900368,1770664569421,-10000.01,0.00016831,2]
[404900369,1770664569519,-10000.01,0.00016831,2]
[404900372,1770664621956,2666.59006195,0.00016731,2]
[404900373,1770664627599,7333.41993805,7.945e-05,2]
[404900374,1770664627623,10000.01,7.945e-05,2]
[404900375,1770664627646,3997.52802495,7.945e-05,2]
[404900376,1770664661829,378.636441,0.00016745,2]
[404900377,1770664686831,-550.0,0.00016829,2]
[404900378,1770664686863,-300.0,0.00016829,2]
[404900379,1770664702092,2222.15838495,0.00016731,2]
[404900380,1770664730631,5000.01,0.00016731,2]
[404900381,1770664730668,5000.01,0.00016731,2]
[404900382,1770664730696,5000.01,0.00016731,2]
[404900383,1770664730722,5000.01,0.00016731,2]
[404900384,1770664730750,5000.01,0.00016731,2]
[404900385,1770664730786,5000.01,0.00016731,2]
[404900386,1770664730832,7777.85161505,0.00016731,2]
[404900387,1770664730861,10000.01,0.00016731,2]
[404900388,1770664740114,-5623.84553405,0.00016731,2]
[404900389,1770664740207,-10000.01,0.00016731,2]
[404900390,1770664820418,-300.0,0.0001663,2]
[404900391,1770664820448,-1200.0,0.0001663,2]
[404900392,1770664820476,-290.0,0.0001663,2]
[404900393,1770664830517,6420.01,0.00016373,2]
[404900394,1770664830540,3580.0,0.00016373,2]
[404900395,1770664850780,-4044.65750554,0.00016631,2]
[404900396,1770664850811,-597.7267763,0.00016631,2]
[404900397,1770664850871,-715.24143632,0.00016631,2]
[404900398,1770664850901,-407.84041214,0.00016631,2]
[404900399,1770664857490,289.72586718,0.00016631,2]
[404900400,1770664862358,2237.84725634,0.00016631,2]
[404900401,1770664882686,-151.0,0.00016728,2]
[404900402,1770664891190,572.35,0.000164,2]
[404900403,1770664893240,2236.488,0.00016396,2]
[404900404,1770664893735,-550.0,0.0001673,2]
[404900405,1770664893764,-300.0,0.0001673,2]
[404900406,1770664898587,-300.0,0.0001673,2]
[404900407,1770664906935,822.94086106,0.00016631,2]
[404900408,1770664908657,2898.12851342,0.00016631,2]
[404900409,1770664910421,-5000.01,0.00016731,2]
[404900410,1770664912679,-5000.01,0.00016731,2]
[404900411,1770664912783,-5000.01,0.00016731,2]
[404900412,1770664912914,-5000.01,0.00016731,2]
[404900413,1770664913032,-5000.01,0.00016731,2]
[404900414,1770664913167,-5000.01,0.00016731,2]
[404900415,1770664913287,-5000.01,0.00016731,2]
[404900416,1770664914818,-1657.77093832,0.00016731,2]
[404900417,1770664914887,-10000.01,0.00016731,2]
[404900418,1770664915028,-10000.01,0.00016731,2]
[404900419,1770664915155,-10000.01,0.00016731,2]
[404900420,1770664915261,-10000.01,0.00016731,2]
[404900421,1770664915384,-10000.01,0.00016731,2]
[404900422,1770664915508,-10000.01,0.00016731,2]
[404900423,1770664915644,-10000.01,0.00016731,2]
[404900424,1770664915718,-5000.01,0.00016731,2]
[404900425,1770664916108,-10000.01,0.00016731,2]
[404900426,1770664917698,-10000.01,0.00016731,2]
[404900427,1770664920717,-10000.01,0.00016731,2]
[404900428,1770664920876,-10000.01,0.00016731,2]
[404900429,1770664920971,-10000.01,0.00016731,2]
[404900430,1770664921097,-10000.01,0.00016731,2]
[404900431,1770664921256,-300.0,0.0001673,2]
[404900432,1770664921293,-9400.01,0.00016731,2]
[404900433,1770664921390,-10000.01,0.00016731,2]
[404900434,1770664921507,-10000.01,0.00016731,2]
[404900435,1770664921866,-10000.01,0.00016731,2]
[404900436,1770664923663,-10000.01,0.00016731,2]
[404900438,1770665078547,233.34,0.000166,2]
[404900439,1770665094900,150.0,0.00016232,2]
[404900440,1770665105149,1864.8727136,0.00016531,2]
[404900441,1770665106424,875.31214176,0.00016531,2]
[404900442,1770665106723,407.68865098,0.00016531,2]
[404900451,1770665139975,1427.61032238,0.00016565,2]
[404900452,1770665154108,2066.54579322,0.00016565,2]
[404900453,1770665166086,201.50510114,0.00016604,2]
[404900455,1770665186473,2053.46735805,0.00015,2]
[404900456,1770665187667,719.66791887,0.00016565,2]
[404900457,1770665187689,834.39267583,0.00016565,2]
[404900458,1770665188115,720.07325348,0.00016565,2]
[404900462,1770665214037,5000.00923703,0.000162,5]
[404900464,1770665222143,1517.64,0.000153,2]
[404900467,1770665236739,583.54142784,0.00016565,2]
[404900468,1770665237047,326.11045114,0.00016565,2]
[404900481,1770665265852,1018.24295468,0.00013214,2]
[404900482,1770665265874,8552.70704532,0.00013214,2]
[404900483,1770665266149,1386.15759382,0.00016531,2]
[404900484,1770665274366,1467.33727388,0.00016531,2]
[404900485,1770665278581,8532.67272612,0.00016529,2]
[404900486,1770665287737,10000.01,0.0001439,2]
[404900487,1770665287764,68.20969301,0.0001439,2]
[404900488,1770665290744,1000.0,0.000135,2]
[404900489,1770665290887,308.13707197,0.000125,2]
[404900490,1770665312886,268.85646745,0.000107,2]
[404900491,1770665321726,418.4259457,0.00015,2]
[404900492,1770665323139,-509.09546344,0.000154,2]
[404900493,1770665338210,-2243.41149214,0.00015807,2]
[404900592,1770665431881,-256.43567797,0.00016384,2]
[404900593,1770665431891,-288.0,0.00016384,2]
[404900594,1770665431901,-154.96528004,0.00016429,2]
[404900595,1770665431911,-550.75248982,0.00016431,2]
[404900596,1770665431922,-217.40696744,0.00016431,2]
[404900597,1770665431932,-757.10145225,0.00016431,2]
[404900598,1770665431944,-280.88344927,0.00016431,2]
[404900599,1770665431954,-1385.73139843,0.00016431,2]
[404900600,1770665431963,-250.0,0.00016442,2]
[404900601,1770665431972,-195.0,0.00016455,2]
[404900602,1770665431982,-196.24403011,0.00016455,2]
[404900603,1770665431992,-154.96528002,0.0001648,2]
[404900605,1770665432001,-250.0,0.00016484,2]
[404900607,1770665432011,-300.0,0.00016518,2]
[404900608,1770665432020,-300.0,0.00016527,2]
[404900609,1770665432030,-300.0,0.00016527,2]
[404900610,1770665432039,-1200.0,0.00016527,2]
[404900612,1770665432048,-550.0,0.00016527,2]
[404900613,1770665432058,-500.0,0.00016528,2]
[404900615,1770665432067,-1200.0,0.00016528,2]
[404900617,1770665432077,-500.0,0.00016528,2]
[404900619,1770665432086,-500.0,0.00016528,2]
[404900620,1770665432095,-500.0,0.00016528,2]
[404900621,1770665432105,-500.0,0.00016528,2]
[404900622,1770665432114,-376.80871709,0.00016528,2]
[404900623,1770665432124,-1136.4305571,0.00016528,2]
[404900624,1770665432351,-1155.74534545,0.00016528,2]
[404900625,1770665432361,-456.06975058,0.00016528,2]
[404900626,1770665432373,-542.62433888,0.00016528,2]
[404900627,1770665432384,-523.0,0.00016528,2]
[404900628,1770665432409,-770.48181309,0.00016528,2]
[404900629,1770665432418,-1350.03818691,0.00016528,2]
[404900630,1770665432429,-349.43324436,0.00016528,2]
[404900631,1770665432440,-592.70447128,0.00016528,2]
[404900632,1770665432450,-2292.17590255,0.00016528,2]
[404900633,1770665432458,-2292.17590255,0.00016528,2]
[404900634,1770665432467,-2292.17590255,0.00016528,2]
[404900635,1770665432477,-2292.17590255,0.00016528,2]
[404900636,1770665432485,-2292.17590255,0.00016528,2]
[404900637,1770665432494,-2292.17590255,0.00016528,2]
[404900638,1770665432503,-2292.17590255,0.00016528,2]
[404900639,1770665432512,-2292.17590255,0.00016528,2]
[404900640,1770665432522,-2292.17590255,0.00016528,2]
[404900641,1770665432531,-2292.17590255,0.00016528,2]
[404900642,1770665432540,-2292.17590255,0.00016528,2]
[404900643,1770665432549,-2292.17590255,0.00016528,2]
[404900644,1770665432559,-2292.17590255,0.00016528,2]
[404900645,1770665432568,-2292.17590255,0.00016528,2]
[404900646,1770665432577,-2292.17590255,0.00016528,2]
[404900647,1770665432586,-2292.17590255,0.00016528,2]
[404900648,1770665432595,-2292.17590255,0.00016528,2]
[404900649,1770665432604,-2292.17590255,0.00016528,2]
[404900650,1770665432613,-2292.17590255,0.00016528,2]
[404900651,1770665432622,-2292.17590255,0.00016528,2]
[404900652,1770665432631,-2292.17590255,0.00016528,2]
[404900653,1770665432641,-2292.17590255,0.00016528,2]
[404900654,1770665432649,-2292.17590255,0.00016528,2]
[404900655,1770665432658,-2292.17590255,0.00016528,2]
[404900656,1770665432667,-2292.17590255,0.00016528,2]
[404900657,1770665432676,-2292.17590255,0.00016528,2]
[404900658,1770665432686,-2292.17590255,0.00016528,2]
[404900659,1770665432695,-2292.17590255,0.00016528,2]
[404900660,1770665432705,-2292.17590255,0.00016528,2]
[404900661,1770665432714,-2292.17590255,0.00016528,2]
[404900662,1770665432723,-2292.17590255,0.00016528,2]
[404900663,1770665432733,-2292.17590255,0.00016528,2]
[404900664,1770665432742,-2292.17590255,0.00016528,2]
[404900665,1770665432751,-2292.17590255,0.00016528,2]
[404900666,1770665432761,-2292.17590255,0.00016528,2]
[404900667,1770665432770,-2292.17590255,0.00016528,2]
[404900668,1770665432780,-2292.17590255,0.00016528,2]
[404900669,1770665432789,-2292.17590255,0.00016528,2]
[404900670,1770665432799,-2292.17590255,0.00016528,2]
[404900671,1770665432808,-2292.17590255,0.00016528,2]
[404900672,1770665432818,-2292.17590255,0.00016528,2]
[404900673,1770665432827,-2292.17590255,0.00016528,2]
[404900674,1770665432837,-2292.17590255,0.00016528,2]
[404900675,1770665432846,-2292.17590255,0.00016528,2]
[404900676,1770665432856,-2292.17590255,0.00016528,2]
[404900677,1770665432869,-2292.17590255,0.00016528,2]
[404900678,1770665432878,-2292.17590255,0.00016528,2]
[404900679,1770665432888,-2292.17590255,0.00016528,2]
[404900680,1770665432897,-2292.17590255,0.00016528,2]
[404900681,1770665432907,-2292.17590255,0.00016528,2]
[404900682,1770665432916,-2597.79935622,0.00016528,2]
[404900683,1770665432925,-2597.79935622,0.00016528,2]
[404900684,1770665432935,-2597.79935622,0.00016528,2]
[404900685,1770665432944,-2597.79935622,0.00016528,2]
[404900686,1770665432954,-2597.79935622,0.00016528,2]
[404900687,1770665432963,-2597.79935622,0.00016528,2]
[404900688,1770665432972,-2597.79935622,0.00016528,2]
[404900689,1770665432981,-2597.79935622,0.00016528,2]
[404900690,1770665432990,-2597.79935622,0.00016528,2]
[404900691,1770665432999,-2597.79935622,0.00016528,2]
[404900692,1770665433008,-2597.79935622,0.00016528,2]
[404900693,1770665433018,-2597.79935622,0.00016528,2]
[404900694,1770665433027,-2597.79935622,0.00016528,2]
[404900695,1770665433037,-2597.79935622,0.00016528,2]
[404900696,1770665433047,-35173.75550747,0.00016529,2]
[404900697,1770665433059,-4244.51519026,0.00016529,2]
[404900698,1770665433071,-44010.7815,0.00016529,2]
[404900699,1770665433082,-2073.2599778,0.00016529,2]
[404900709,1770665437875,-70735.49999997,0.00016529,2]
[404900710,1770665437929,-1335229.51509838,0.00016529,2]
[404900711,1770665437939,-6729.0128,0.00016529,2]
[404900712,1770665437949,-3500000.0,0.00016529,2]
[404900713,1770665437958,-154.96528002,0.00016531,2]
[404900714,1770665437967,-150.0,0.00016604,2]
[404900715,1770665437977,-5831.24784108,0.00016619,2]
[404900716,1770665437986,-6500.0,0.00016627,2]
[404900717,1770665437996,-151.0,0.00016628,2]
[404900718,1770665438005,-151.0,0.00016628,2]
[404900719,1770665438014,-1379.01,0.0001663,2]
[404900720,1770665438024,-1585.6693,0.00016631,2]
[404900721,1770665438034,-200.0,0.00016721,2]
[404900722,1770665438043,-200.0,0.00016721,2]
[404900723,1770665438053,-500.0,0.00016721,2]